Cogmind - Beta 10.2 @@@ ROGUE MODE // 2021.03.05 @ 04:40:32 Player: BOTHUNTER Result: Self-destructed Performance ------------- Evolutions (1) 500 Regions Visited (3) 600 Robots Destroyed (35) 175 Value Destroyed (655) 655 Prototype IDs (0) 0 Alien Tech Used (0) 0 Bonus (0) 0 TOTAL SCORE: 1930 Bonus ------- None Cogmind --------- Core Integrity 219/400 Matter 3/300 Energy 92/100 System Corruption 0% Temperature Cool (6) Movement Core (200) Ox3 Location -9/Materials Parts ------- > --- POWER (1) -------- (None) > --- PROPULSION (2) --- (None) > --- UTILITY (4) ------ Improved Heat Sink Small Storage Unit Small Storage Unit Hacking Suite > --- WEAPON (2) ------- Grenade Launcher > --- INVENTORY (8) ---- Ion Engine Light Ion Engine Light Ion Engine Light Nuclear Core Peak State ------------ > --- POWER ------------ Improved Ion Engine > --- PROPULSION ------- Aluminum Leg Aluminum Leg > --- UTILITY ---------- Improved Heat Sink Small Storage Unit Small Storage Unit Hacking Suite > --- WEAPON ----------- Light Assault Rifle Light Assault Rifle > --- INVENTORY -------- Ion Engine Light Ion Engine Light Ion Engine Light Nuclear Core Aluminum Leg Grenade Launcher [Rating: 14] Favorites ----------- Power Ion Engine Engine Ion Engine Propulsion Aluminum Leg Leg Aluminum Leg Utility Small Storage Unit Device Improved Heat Sink Storage Small Storage Unit Hackware Hacking Suite Weapon Light Assault Rifle Energy Gun Medium Laser Energy Cannon Beam Cannon Ballistic Gun Light Assault Rifle Launcher Grenade Launcher Build | -11 -10 -10 -9 ------- Run | Scr Mat Min Mat Slots Evolved 2 | . . . 2 Power . | . . . . Propulsion . | . . . . Utility 2 | . . . 2 Weapon . | . . . . Parts Attached 34 | 7 16 1 10 Power 4 | 1 2 . 1 Engine 4 | 1 2 . 1 Core . | . . . . Reactor . | . . . . Propulsion 9 | 2 6 . 1 Treads . | . . . . Leg 9 | 2 6 . 1 Wheel . | . . . . Hover . | . . . . Flight . | . . . . Utility 4 | 2 . . 2 Device 1 | . . . 1 Storage 2 | 2 . . . Processor . | . . . . Hackware 1 | . . . 1 Protection . | . . . . Artifact . | . . . . Weapon 17 | 2 8 1 6 Energy Gun 5 | 2 3 . . Energy Cannon 1 | . 1 . . Ballistic Gun 6 | . 3 . 3 Ballistic Cannon . | . . . . Launcher 5 | . 1 1 3 Special Weapon . | . . . . Impact Weapon . | . . . . Slashing Weapon . | . . . . Piercing Weapon . | . . . . Special Melee Weapon . | . . . . Unidentified Prototypes . | . . . . Parts Lost 14 | . 5 . 9 Power 2 | . 1 . 1 Propulsion 3 | . . . 3 Utility . | . . . . Weapon 9 | . 4 . 5 Highest Loss Streak 6 | . 3 . 6 Average Slot Usage (%) 95 | . 97 100 82 Engine 12 | . 12 14 7 Leg 25 | . 28 28 17 Storage 26 | . 28 28 22 Hackware 2 | . . . 11 Energy Gun 4 | . 10 . . Energy Cannon 2 | . 5 . . Ballistic Gun 11 | . 9 14 12 Launcher 6 | . . 13 7 Naked Turns . | . . . . Heaviest Build 19 | 17 17 17 19 Greatest Support 20 | 20 20 20 20 Greatest Overweight (x) 1 | . . . 1 Average Overweight (x) . | . . . . Largest Inventory Capacity 8 | 8 8 8 8 Average Capacity 7 | 5 8 8 8 Most Carried 8 | 3 8 8 8 Average Carried 6 | 2 6 8 6 Final Capacity 8 | 8 8 8 8 Final Carried 8 | 3 8 8 4 Class Distribution -------------------- 78% | Scavenger-Mutant 21% | Mutant Dominant Class ---------------- Scavenger-Mutant | -10/Materials Scavenger-Mutant | -10/Mines Scavenger-Mutant | -9/Materials Resources | -11 -10 -10 -9 ----------- Run | Scr Mat Min Mat Matter Collected 554 | 217 276 22 39 Remotely . | . . . . Salvage Created 939 | 63 660 112 104 Parts 61 | 2 42 6 11 Haulers Intercepted 2 | . 2 . . Recyclers Shooed 3 | . . 3 . Parts Field Recycled . | . . . . Retrieved Matter . | . . . . Parts Self-Destructed . | . . . . Prevented . | . . . . Kills | -11 -10 -10 -9 ------- Run | Scr Mat Min Mat Combat Hostiles Destroyed 19 | . 12 . 7 Melee 1 | . 1 . . Guns 8 | . 7 . 1 Cannons 1 | . 1 . . AOE 9 | . 3 . 6 Classes Destroyed 9 | 1 7 . 1 Worker 5 | . 2 2 1 Builder 2 | . 2 . . Hauler 2 | . 2 . . Recycler 4 | 1 2 1 . Operator 1 | . 1 . . Watcher 2 | . 1 . 1 Swarmer 7 | . 3 . 4 Grunt 9 | . 9 . . Sentry 3 | . . . 3 Best Kill Streak 7 | 1 7 2 6 Combat Bots Only 5 | . 5 . 5 Max Kills in Single Turn 2 | 1 2 2 2 Gunslinging . | . . . . Exploded 2 | . 2 . 2 Melee 1 | . 1 . . Uniques/NPCs Destroyed . | . . . . Combat | -11 -10 -10 -9 -------- Run | Scr Mat Min Mat Damage Taken 1794 | . 819 . 975 Core 308 | . 127 . 181 Absorbed by Shields . | . . . . Core Remaining (%) 74 | 100 . 49 . Volleys Fired 170 | 2 92 32 44 Largest 2 | 2 2 2 2 Hottest 100 | 100 100 50 50 Shots Fired 283 | 4 175 33 71 Gun 215 | 4 128 32 51 Cannon 44 | . 44 . . Launcher 24 | . 3 1 20 Special . | . . . . Kinetic 152 | . 69 32 51 Thermal 81 | 4 77 . . Explosive 24 | . 3 1 20 Electromagnetic 26 | . 26 . . Robot Hit Streak 10 | 3 9 6 10 Robot Miss Streak 5 | . 5 2 2 Penetration Max . | . . . . Secondary Targets 1 | . 1 . . Max Gunslinging Chain 1 | . 1 . . Shots Hit Robots 160 | 3 91 15 51 Core Hits 71 | 2 40 9 20 Critical Hits 2 | . 1 . 1 Critical Kills . | . . . . Critical Parts Destroyed 2 | . 1 . 1 Melee Attacks . | . . . . Impact . | . . . . Slashing . | . . . . Piercing . | . . . . Sneak Attacks . | . . . . Combat Hostiles . | . . . . Follow-up Attacks . | . . . . Damage Inflicted 2829 | 36 1596 229 968 Guns 1102 | 36 643 123 300 Cannons 417 | . 417 . . Explosions 1296 | . 522 106 668 Melee . | . . . . Ramming 14 | . 14 . . Kinetic 609 | . 186 123 300 Thermal 922 | 36 840 46 . Explosive 1071 | . 343 60 668 Electromagnetic 213 | . 213 . . Impact . | . . . . Slashing . | . . . . Piercing . | . . . . Highest Corruption 2 | . 2 2 . Average Corruption 1 | . 1 2 . Corruption Purged . | . . . . Effects 17 | . 9 8 . Message Errors 5 | . 3 2 . Heat Flow Errors 3 | . . 3 . Energy Discharges 1 | . . 1 . Data Loss (minor) 3 | . 1 2 . Targeting Errors 5 | . 5 . . Overload Shots . | . . . . Overflow Damage 17 | . 17 . . Projectiles 16 | . 16 . . Explosions 1 | . 1 . . Melee . | . . . . Knockbacks . | . . . . Impact . | . . . . Kinetic . | . . . . Secondary . | . . . . Self-Inflicted Damage 133 | . 17 . 116 Shots 6 | . 1 . 5 Rammed 5 | . 5 . . Targets Rammed 5 | . 5 . . Kicked . | . . . . Crushed . | . . . . Highest Temperature 421 | 78 421 234 15 Average Temperature 108 | 40 119 107 6 Received Heat Transfer 762 | . 441 . 321 Effects 6 | . 5 1 . Shutdowns 1 | . 1 . . Energy Bleed 1 | . 1 . . Interference 3 | . 2 1 . Damage (minor) 1 | . 1 . . Siege Activations . | . . . . Robots Corrupted . | . . . . Combat Hostiles . | . . . . Parts Fried . | . . . . Impact Corruptions . | . . . . Robots Melted . | . . . . Combat Hostiles . | . . . . Parts Melted 2 | . 2 . . Heat Transferred 2015 | 111 1854 50 . Parts Sabotaged . | . . . . Parts Stolen . | . . . . Parts Stripped . | . . . . Power Chain Reactions 2 | . 2 . . Missiles Intercepted . | . . . . Alert | -11 -10 -10 -9 ------- Run | Scr Mat Min Mat Peak Influence 377 | 5 377 88 203 Initial 88 | . 3 88 11 Average 123 | 2 205 52 109 Maximum Alert Level 1 | . 1 . 1 Low Security (%) 72 | 100 42 100 78 Level 1 27 | . 57 . 21 Level 2 . | . . . . Level 3 . | . . . . Level 4 . | . . . . Level 5 . | . . . . High Security . | . . . . Max Security . | . . . . Squads Dispatched 3 | . 3 . . Investigation 2 | . 2 . . Extermination . | . . . . Reinforcement 1 | . 1 . . Assault . | . . . . Garrison . | . . . . Intercept . | . . . . Construction Impeded . | . . . . Haulers Reinforced . | . . . . Stealth | -11 -10 -10 -9 --------- Run | Scr Mat Min Mat Distress Signals . | . . . . Communications Jammed . | . . . . Distress Signals . | . . . . Times Spotted 41 | . 26 . 15 Peak Tracking Total 6 | . 5 . 6 Tactical Retreats 8 | . 8 . . Traps | -11 -10 -10 -9 ------- Run | Scr Mat Min Mat Traps Triggered 1 | . 1 . . Indirectly . | . . . . Trap Hack Attempts . | . . . . Triggered . | . . . . Disarmed . | . . . . Reprogrammed . | . . . . Reused . | . . . . Traps Extracted . | . . . . Installed . | . . . . Triggered . | . . . . Machines | -11 -10 -10 -9 ---------- Run | Scr Mat Min Mat Machines Disabled 4 | . 2 1 1 Max in Single Turn 1 | . 1 1 1 Machines Sabotaged . | . . . . Garrisons Compromised . | . . . . Overloaded Fab Kills . | . . . . Fab Network Shutdowns . | . . . . Hacking | -11 -10 -10 -9 --------- Run | Scr Mat Min Mat Machines Accessed 4 | . 4 . . Terminals 4 | . 4 . . Fabricators . | . . . . Repair Stations . | . . . . Recycling Units . | . . . . Scanalyzers . | . . . . Garrison Access . | . . . . Total Hacks 23 | . 23 . . Successful 8 | . 8 . . Failed 15 | . 15 . . Catastrophic 2 | . 2 . . Database Lockouts . | . . . . Manual 20 | . 20 . . Terminals 23 | . 23 . . Fabricators . | . . . . Repair Stations . | . . . . Recycling Units . | . . . . Scanalyzers . | . . . . Garrison Access . | . . . . Terminal Hacks 6 | . 6 . . Part Schematic 2 | . 2 . . Robot Analysis 2 | . 2 . . Branch Access Points 1 | . 1 . . Recall Investigation 1 | . 1 . . Fabricator Hacks . | . . . . Repair Station Hacks . | . . . . Recycling Unit Hacks . | . . . . Scanalyzer . | . . . . Garrison Access Hacks . | . . . . Unauthorized Hacks 2 | . 2 . . Terminals 2 | . 2 . . Botnet 2 | . 2 . . Fabricators . | . . . . Repair Stations . | . . . . Recycling Units . | . . . . Scanalyzers . | . . . . Garrison Access . | . . . . Data Cores Recovered 1 | . 1 . . Used . | . . . . Hacking Detections 4 | . 4 . . Full Trace Events 4 | . 4 . . Feedback Events . | . . . . Feedback Blocked . | . . . . Robot Schematics Acquired . | . . . . Robots Built . | . . . . Matter . | . . . . Time . | . . . . Total Robot Build Rating . | . . . . Part Schematics Acquired 2 | . 2 . . Parts Built . | . . . . Matter . | . . . . Time . | . . . . Total Part Build Rating . | . . . . Parts Repaired . | . . . . Time . | . . . . Parts Recycled . | . . . . Recycled Matter . | . . . . Retrieved Matter . | . . . . Retrieved Components . | . . . . Parts Scanalyzed . | . . . . Part Schematics Acquired . | . . . . Parts Damaged . | . . . . Bothacking | -11 -10 -10 -9 ------------ Run | Scr Mat Min Mat Used RIF Installer . | . . . . Robots Hacked . | . . . . Non-combat . | . . . . Combat . | . . . . Robot Hacks Applied . | . . . . Relay Couplers Released . | . . . . Robots Rewired . | . . . . Allies Hacked . | . . . . Hacks Repelled . | . . . . Allies | -11 -10 -10 -9 -------- Run | Scr Mat Min Mat Total Allies . | . . . . Largest Group . | . . . . Highest-Rated Group . | . . . . Highest-Rated Ally . | . . . . Total Orders . | . . . . Ally Attacks . | . . . . Total Damage . | . . . . Kills . | . . . . Allies Corrupted . | . . . . Allies Melted . | . . . . Intel | -11 -10 -10 -9 ------- Run | Scr Mat Min Mat Robot Analysis Total 2 | . 2 . . Derelict Logs Recovered 1 | . . 1 . Drone Launches . | . . . . Drone Recoveries . | . . . . Exploration | -11 -10 -10 -9 ------------- Run | Scr Mat Min Mat Turns Passed 2018 | 72 815 733 398 Spaces Moved 1195 | 53 425 497 220 Core 18 | 18 . . . Treads . | . . . . Legs 1177 | 35 425 497 220 Wheels . | . . . . Hover . | . . . . Flight . | . . . . Fastest Speed 50 | 50 120 120 120 Average Speed 120 | 96 120 120 126 Slowest Speed 150 | 120 120 120 150 Overloaded Moves . | . . . . Propulsion Burnouts . | . . . . Robots Hopped . | . . . . Cave-ins Triggered . | . . . . Exploration Rate (%) 46 | 4 59 94 28 Regions Visited 3 Branch Regions 1 Pre-discovered Areas . | . . . . Known Exits Taken 1 | . 1 . . Unknown Exits Taken 2 | 1 . 1 . Scrap Searched 1 | . . 1 . Spaces Dug 9 | . . . 9 Terrain Destroyed 138 | . 26 17 95 Melee . | . . . . Projectile . | . . . . AOE 138 | . 26 17 95 Terrain Rammed . | . . . . Walls Destroyed . | . . . . Machines Disabled . | . . . . Actions | -11 -10 -10 -9 --------- Run | Scr Mat Min Mat Total 1517 | 67 563 609 278 Wait 91 | . 12 77 2 Move 1192 | 52 424 496 220 Hop . | . . . . Pick Up 14 | 5 8 1 . Fast Attach 14 | 6 5 1 2 Attach 9 | 1 2 . 6 Detach 1 | . . . 1 Swap 11 | . 9 . 2 Drop 10 | 1 6 2 1 Fire 170 | 2 92 32 44 Melee . | . . . . Ram . | . . . . Kick 5 | . 5 . . Crush . | . . . . Escape Stasis . | . . . . Rewire . | . . . . Trap . | . . . . Miscellaneous . | . . . . Route ------- -11/Scrapyard -10/Materials (discovered 2 exits: [*Mat] / *Min) -10/Mines -9/Materials History --------- Turn | Location | Event 7 | -11/Scrapyard | Discovered new exit (range 15) 73 | -11/Scrapyard | Entered Materials 338 | -10/Materials | Build established: Mutant 467 | -10/Materials | Lost 3 parts (1p2w) 520 | -10/Materials | Discovered new exit (range 16) 567 | -10/Materials | Core integrity fell below 50% 683 | -10/Materials | Identified exit to Mines 745 | -10/Materials | Build established: Scavenger-Mutant 888 | -10/Materials | Entered Mines 889 | -10/Mines | YI-UF0 nonchalantly dropped a Grenade Launcher on the ground 915 | -10/Mines | Discovered new exit (range 10) 1330 | -10/Mines | Learned Materials terminal intel 1621 | -10/Mines | Entered Materials 1621 | -9/Materials | Evolved 2 slots: Utility x2 1622 | -9/Materials | Loaded intel: 12 terminal locations 1938 | -9/Materials | Lost 6 parts (1p2n3w) 2019 | -9/Materials | Self-destructed Last Messages --------------- 01933_ U-05 Engineer lays Concrete. 01938_ The unstable cave ceiling collapses. 01939_ U-05 Engineer lays Concrete. 01940_ U-05 Engineer builds a Wall. 01942_ Acquired 10 matter. 01942_ R-06 Scavenger collects Lgt. Assault Rifle. 01944_ U-05 Engineer lays Concrete. 01946_ U-05 Engineer builds a Wall. 01948_ R-06 Scavenger collects Lgt. Ion Engine. 01951_ U-05 Engineer lays Concrete. 01951_ R-06 Scavenger collects Flight Unit. 01952_ U-05 Engineer lays Concrete. 02003_ K-01 Serf collects debris. 02009_ Aluminum Leg destroyed. 02013_ K-01 Serf destroyed. 02014_ Lgt. Assault Rifle destroyed. 02015_ C-30 ARC bursts open, deploying its payload. 02015_ S-10 Pest unfolds itself. 02015_ Lgt. Assault Rifle destroyed. 02016_ S-10 Pest destroyed. Map ----- +----------------------------------------------------+ | ??"???????""?????????????????????????????????????? | | ?????????????????????????????????????????????????? | | ?????????????????????????????????????????????????? | | ?????????????????????????????????????????????????? | | ?????????????????????????????????????????????????? | | ?????????????????????????????????????????????????? | | ?????????????????????????????????????????????????? | | ?????????????????????????????????????????????????? | | ?????????????????????????????????????????????????? | | ???????????????????????????####+#########????????? | | ???????????????????????????? ######???? | | ??????"""???????????????????# ????? | | ??????"T???????????##????#??# #???????? | | ??????"""?????????? ???? ??# #???????? | | ???????????????????? """ " # """ #???????? | | ????????????????????[ """ T # """ #???????? | | ????????????????????? """ " # """ #???????? | | ????????????????????? s # ###?????? | | ???????????????????### # ??? | | ???????????????????# g """ ??? | | ???????????????????# s% """ ???? | | ???????????????????#! |g[ """ ???? | | ???????????????????# s|[* #####????? | | ???????????????????# |[[% ^ #????????? | | ???????????#???????# =! """ #????????? | | ???????????? ??????# @ # """ +????????? | | ????????????# ?????# # ^ """ #????????? | | ????????????# ???### ! # #????????? | | ????????????# ?## ######## #????????? | | ???????????## # #???# """ #????????? | | #??????????# # # #???# """ #????????? | | #??????????# ##### """ #????????? | | #??????????# % * ## ! +????????? | | #??????????# ! = #????????? | | #??????????# [ # #????????? | | #??????????# ## # ####### #????????? | | #??????????# ## ### """ #???####+#######????????? | | #??????????#??##??# """ #???????????????????????? | | #?????????????????# """ #???????????????????????? | | #?????????????????# #???????????????????????? | | #????######???????# #???????????????????????? | | ###### ######## #???????????????????????? | | ####+#######???????????????????? | | +??????????????? | | ##+#########???????????????????? | | ##### ##### ## ??????????????????????????? | | ##########????# ## ????????????????????????? | | ## |#?????# ## #???????????????????????? | | ## """ | #?????# ## #???????????????????????? | | ?# """ #?????# ## #???????????????????????? | +----------------------------------------------------+ Best States ------------- Heat Dissipation 42 Energy Generation 12 Energy Capacity 265 Matter Stores 300 Matter Capacity 300 Sight Range 16 Terrain Scan Density 10 Evasion (%) 50 Offensive Hacking 10 Item Schematics ----------------- Weapon Shielding | -10/Materials | Hacked Lgt. Armor Plating | -10/Materials | Hacked Robot Schematics ------------------ None Fabricated ------------ Nothing Alien Tech Used ----------------- None Achievements -------------- None Challenges ------------ None Game ------ Seed BottomlessEnhancedFilter Manual? 0 Play Time 00:16:44 Cumulative 127.2 hours Start 2021.03.04 @ 02:37:23 End 2021.03.05 @ 04:40:32 Sessions 3 Manual Loads 0 Difficulty Rogue Special Mode None Game No. 189 Rogue 165 Adventurer 22 Explorer 2 Win Type - Total 1 Types 1/0/0/0/0/0/0/0/0 Lore% 52 Gallery% 56 Achievement% 45 Wizard Run 0 Options --------- ASCII 0 Keyboard 0 Movement Numpad Keybinds 0 Fullscreen 1 Font 14/SmallcapsGlow Map View 84x54 Tactical HUD 1 Map Filters NONE Filters NONE Steam 1 RUN: 5eadb55e-a689-4dc4-9856-2dc4dbc3b4f6